{"text_format":"3","workbook":"xlsx","n_sheets":2,"sheets":["Flusso di cassa","Grafico Flusso di cassa"],"not_rendered":{"charts":1,"defined_names":5},"read":"whole","date_system":"1900"}

{"sheet":"Flusso di cassa","index":0,"n_rows":61,"n_cols":16,"rows_kept":61,"merged":[[0,1,0,15],[1,1,1,15]]}
[null,"Proiezione del flusso di cassa di piccole imprese"]
[null,"Nome società"]
[null,"Data di inizio",{"$f":"TODAY()","v":"2019-04-23"}]
[null,"Avviso minimo per il saldo di cassa",null,{"$f":"Cash_minimum","v":0},{"$f":"Cash_minimum","v":0},0,0,0,0,0,0,0,0,0,0]
[]
[null,null,"Inizio","gen-18","feb-18","mar-18","apr-18","mag-18","giu-18","lug-18","ago-18","set-18","ott-18","nov-18","dic-18","Totale"]
[null,"Disponibilità di cassa (inizio mese)",null,{"$f":"C53","v":0},0,0,0,0,0,0,0,0,0,0,0]
[]
[null,"INCASSI"," ","gen-18","feb-18","mar-18","apr-18","mag-18","giu-18","lug-18","ago-18","set-18","ott-18","nov-18","dic-18","Totale"]
[null,"Vendite in contanti",{"$nulls":13},{"$f":"SUM(D10:O10)","v":0}]
[null,"Resi e indennità di vendita",{"$nulls":13},0]
[null,"Raccolta contabilità clienti",{"$nulls":13},0]
[null,"Interessi, altre entrate",{"$nulls":13},0]
[null,"Ricavi da prestito",{"$nulls":13},0]
[null,"Contributi proprietario",{"$nulls":13},0]
[null,"INCASSI TOTALI",null,{"$f":"SUM(D10,D12:D15,(D11*-1))","v":0},0,0,0,0,0,0,0,0,0,0,0,{"$f":"SUBTOTAL(109,CashReceipts[Totale])","v":0}]
[null,"Disponibilità di cassa totale",{"$f":"(C7+CashReceipts[[#Totals],[ ]])","v":0},{"$f":"(D7+CashReceipts[[#Totals],[gen-18]])","v":0},{"$f":"(E7+CashReceipts[[#Totals],[feb-18]])","v":0},{"$f":"(F7+CashReceipts[[#Totals],[mar-18]])","v":0},{"$f":"(G7+CashReceipts[[#Totals],[apr-18]])","v":0},{"$f":"(H7+CashReceipts[[#Totals],[mag-18]])","v":0},{"$f":"(I7+CashReceipts[[#Totals],[giu-18]])","v":0},{"$f":"(J7+CashReceipts[[#Totals],[lug-18]])","v":0},{"$f":"(K7+CashReceipts[[#Totals],[ago-18]])","v":0},{"$f":"(L7+CashReceipts[[#Totals],[set-18]])","v":0},{"$f":"(M7+CashReceipts[[#Totals],[ott-18]])","v":0},{"$f":"(N7+CashReceipts[[#Totals],[nov-18]])","v":0},{"$f":"(O7+CashReceipts[[#Totals],[dic-18]])","v":0}]
[]
[null,"USCITE DI CASSA"," ","gen-18","feb-18","mar-18","apr-18","mag-18","giu-18","lug-18","ago-18","set-18","ott-18","nov-18","dic-18","Totale"]
[null,"Pubblicità",{"$nulls":13},{"$f":"SUM(D20:O20)","v":0}]
[null,"Commissioni e spese",{"$nulls":13},0]
[null,"Collaboratori a contratto",{"$nulls":13},0]
[null,"Programmi di benefit per i dipendenti",{"$nulls":13},0]
[null,"Assicurazione (oltre a quella sanitaria)",{"$nulls":13},0]
[null,"Interessi passivi",{"$nulls":13},0]
[null,"Materiali e forniture (in COGS)",{"$nulls":13},0]
[null,"Pasti e intrattenimento",{"$nulls":13},0]
[null,"Interesse mutuo",{"$nulls":13},0]
[null,"Spese di ufficio",{"$nulls":13},0]
[null,"Altri interessi passivi",{"$nulls":13},0]
[null,"Piano pensionistico e condivisione di profitto",{"$nulls":13},0]
[null,"Acquisti per rivendita",{"$nulls":13},0]
[null,"Affitto o leasing",{"$nulls":13},0]
[null,"Affitto o leasing: veicoli, attrezzatura",{"$nulls":13},0]
[null,"Riparazioni e manutenzione",{"$nulls":13},0]
[null,"Forniture (non nel COGS)",{"$nulls":13},0]
[null,"Tasse e licenze",{"$nulls":13},0]
[null,"Viaggi",{"$nulls":13},0]
[null,"Utenze",{"$nulls":13},0]
[null,"Retribuzioni (meno crediti occ.)",{"$nulls":13},0]
[null,"Altre spese",{"$nulls":13},0]
[null,"Altre spese",{"$nulls":13},0]
[null,"Altre spese",{"$nulls":13},0]
[null,"Varie",{"$nulls":13},0]
[null,"SUBTOTALE",null,{"$f":"SUBTOTAL(109,Spese[gen-18])","v":0},{"$f":"SUBTOTAL(109,Spese[feb-18])","v":0},{"$f":"SUBTOTAL(109,Spese[mar-18])","v":0},{"$f":"SUBTOTAL(109,Spese[apr-18])","v":0},{"$f":"SUBTOTAL(109,Spese[mag-18])","v":0},{"$f":"SUBTOTAL(109,Spese[giu-18])","v":0},{"$f":"SUBTOTAL(109,Spese[lug-18])","v":0},{"$f":"SUBTOTAL(109,Spese[ago-18])","v":0},{"$f":"SUBTOTAL(109,Spese[set-18])","v":0},{"$f":"SUBTOTAL(109,Spese[ott-18])","v":0},{"$f":"SUBTOTAL(109,Spese[nov-18])","v":0},{"$f":"SUBTOTAL(109,Spese[dic-18])","v":0},{"$f":"SUBTOTAL(109,Spese[Totale])","v":0}]
[null,"USCITE DI CASSA"," ","gen-18","feb-18","mar-18","apr-18","mag-18","giu-18","lug-18","ago-18","set-18","ott-18","nov-18","dic-18","Totale"]
[null,"Pagamento capitale del prestito",{"$nulls":13},{"$f":"SUM(D47:O47)","v":0}]
[null,"Acquisti di capitale",{"$nulls":13},0]
[null,"Altri costi di avviamento",{"$nulls":13},0]
[null,"Per riserve e/o depositi a garanzia",{"$nulls":13},0]
[null,"Prelievo dei proprietari",{"$nulls":13},0]
[null,"TOTALE USCITE DI CASSA",null,{"$f":"Spese[[#Totals],[gen-18]]+SUBTOTAL(109,CashPaidOut[gen-18])","v":0},{"$f":"Spese[[#Totals],[feb-18]]+SUBTOTAL(109,CashPaidOut[feb-18])","v":0},{"$f":"Spese[[#Totals],[mar-18]]+SUBTOTAL(109,CashPaidOut[mar-18])","v":0},{"$f":"Spese[[#Totals],[apr-18]]+SUBTOTAL(109,CashPaidOut[apr-18])","v":0},{"$f":"Spese[[#Totals],[mag-18]]+SUBTOTAL(109,CashPaidOut[mag-18])","v":0},{"$f":"Spese[[#Totals],[giu-18]]+SUBTOTAL(109,CashPaidOut[giu-18])","v":0},{"$f":"Spese[[#Totals],[lug-18]]+SUBTOTAL(109,CashPaidOut[lug-18])","v":0},{"$f":"Spese[[#Totals],[ago-18]]+SUBTOTAL(109,CashPaidOut[ago-18])","v":0},{"$f":"Spese[[#Totals],[set-18]]+SUBTOTAL(109,CashPaidOut[set-18])","v":0},{"$f":"Spese[[#Totals],[ott-18]]+SUBTOTAL(109,CashPaidOut[ott-18])","v":0},{"$f":"Spese[[#Totals],[nov-18]]+SUBTOTAL(109,CashPaidOut[nov-18])","v":0},{"$f":"Spese[[#Totals],[dic-18]]+SUBTOTAL(109,CashPaidOut[dic-18])","v":0},0]
[null,"Disponibilità di cassa (fine del mese)",{"$f":"C17","v":0},{"$f":"D17-CashPaidOut[[#Totals],[gen-18]]","v":0},{"$f":"E17-CashPaidOut[[#Totals],[feb-18]]","v":0},{"$f":"F17-CashPaidOut[[#Totals],[mar-18]]","v":0},{"$f":"G17-CashPaidOut[[#Totals],[apr-18]]","v":0},{"$f":"H17-CashPaidOut[[#Totals],[mag-18]]","v":0},{"$f":"I17-CashPaidOut[[#Totals],[giu-18]]","v":0},{"$f":"J17-CashPaidOut[[#Totals],[lug-18]]","v":0},{"$f":"K17-CashPaidOut[[#Totals],[ago-18]]","v":0},{"$f":"L17-CashPaidOut[[#Totals],[set-18]]","v":0},{"$f":"M17-CashPaidOut[[#Totals],[ott-18]]","v":0},{"$f":"N17-CashPaidOut[[#Totals],[nov-18]]","v":0},{"$f":"O17-CashPaidOut[[#Totals],[dic-18]]","v":0}]
[]
[null,"ALTRI DATI OPERATIVI"," ","gen-18","feb-18","mar-18","apr-18","mag-18","giu-18","lug-18","ago-18","set-18","ott-18","nov-18","dic-18","Totale"]
[null,"Volume delle vendite (euro)",{"$nulls":13},{"$f":"SUM(OtherOperationalData[[#This Row],[gen-18]:[dic-18]])","v":0}]
[null,"Bilancio contabilità clienti:",{"$nulls":13},{"$f":"SUM(OtherOperationalData[[#This Row],[gen-18]:[dic-18]])","v":0}]
[null,"Bilancio insolvenze",{"$nulls":13},{"$f":"SUM(OtherOperationalData[[#This Row],[gen-18]:[dic-18]])","v":0}]
[null,"Scorte disponibili",{"$nulls":13},{"$f":"SUM(OtherOperationalData[[#This Row],[gen-18]:[dic-18]])","v":0}]
[null,"Saldo contabilità fornitori",{"$nulls":13},{"$f":"SUM(OtherOperationalData[[#This Row],[gen-18]:[dic-18]])","v":0}]
[null,"Ammortamento",{"$nulls":13},{"$f":"SUM(OtherOperationalData[[#This Row],[gen-18]:[dic-18]])","v":0}]

{"sheet":"Grafico Flusso di cassa","index":1,"n_rows":37,"n_cols":4,"rows_kept":37,"merged":[[1,1,34,16],[36,1,36,2]]}
[]
[null,"Grafico combinato con Avviso minimo di disponibilità di cassa e proiezione del flusso di cassa nella cella."]
{"$rows_empty":34}
[null,"Avviso minimo per il saldo di cassa",null,{"$f":"[0]!Cash_minimum","v":{"v":0,"d":"€ 0"}}]